bitfinex-derivatives/quotes_SOLF0:USTF0_20250823
["timestamp","ask_amount","ask_price","bid_price","bid_amount"]
[1755962741904,4.9307,202.88,202.8,2.56]
[1755962742201,4.9307,202.88,202.81,4.49077404]
[1755962742402,4.9307,202.88,202.82,4.49077404]
[1755962742600,89.0,202.9,202.81,2.56]
[1755962742803,89.0,202.9,202.83,2.56]
[1755962743004,89.0,202.9,202.84,4.48807196]
[1755962743200,89.0,202.9,202.83,2.56]
[1755962743404,89.0,202.9,202.84,4.48650855]
[1755962743609,89.0,202.9,202.83,2.56]
[1755962743906,93.9303,202.9,202.84,4.48632288]
[1755962744104,93.9303,202.9,202.83,2.56]
[1755962744404,93.9303,202.9,202.82,4.9319]
[1755962744608,89.0,202.9,202.8,2.56]
[1755962744906,89.0,202.89,202.8,2.56]
[1755962745102,89.0,202.88,202.77,2.56]
[1755962745312,24.6512,202.9,202.78,8.57815127]
[1755962745313,89.0,202.87,202.78,8.57815127]
[1755962745606,4.9318,202.84,202.79,4.48653083]
[1755962745806,4.9318,202.84,202.77,2.56]
[1755962746003,4.9318,202.84,202.78,8.5175396]
[1755962746204,4.9318,202.84,202.77,2.56]
[1755962746407,4.9318,202.84,202.78,8.51556806]
[1755962746607,122.0,202.86,202.77,2.56]
[1755962746808,122.0,202.86,202.78,8.51561636]
[1755962747009,122.0,202.86,202.77,2.56]
[1755962747306,122.0,202.86,202.78,8.51561636]
[1755962747509,122.0,202.86,202.77,2.56]
[1755962747708,122.0,202.86,202.78,8.51295792]
[1755962747913,122.0,202.86,202.77,2.56]
[1755962748209,89.0,202.87,202.8,4.9324]
[1755962748404,211.0,202.87,202.8,4.9324]
[1755962749308,93.931,202.87,202.8,4.9324]
[1755962749710,93.931,202.87,202.74,32.57588791]
[1755962749711,89.0,202.87,202.74,2.56]
[1755962749905,122.0,202.88,202.76,2.56]
[1755962750107,7.90628791,202.89,202.76,2.56]
[1755962750108,122.02,202.87,202.77,8.51093471]
[1755962750410,4.9309,202.87,202.8,4.9324]
[1755962750598,96.90628791,202.93,202.79,2.56]
[1755962751114,4.9302,202.9,202.81,2.56]
[1755962751509,122.02,202.92,202.81,2.56]
[1755962752008,4.93,202.91,202.83,4.9317]
[1755962752311,4.93,202.91,202.81,2.56]
[1755962752712,93.9295,202.93,202.82,4.0868586]
[1755962752907,93.9295,202.93,202.81,2.56]
[1755962753109,93.9295,202.93,202.83,2.56]
[1755962753507,4.9298,202.92,202.86,4.9309]
[1755962754915,89.0,202.93,202.86,2.56]
[1755962755114,7.90628791,202.98,202.86,2.56]
[1755962755512,7.90628791,202.98,202.83,7.90628791]
[1755962755513,89.0,203.0,202.91,2.56]
[1755962755713,7.90628791,202.98,202.91,2.56]
[1755962755908,7.90628791,202.98,202.87,2.56]
[1755962756415,4.929,202.95,202.87,7.4907]
[1755962757016,4.9293,202.94,202.87,7.4907]
[1755962757223,7.90628791,202.94,202.83,2.56]
[1755962757610,129.92628791,202.94,202.83,2.56]
[1755962758414,4.9302,202.9,202.83,7.4916]
[1755962758621,122.0,202.96,202.85,2.56]
[1755962758816,122.0,202.97,202.87,2.56]
[1755962759014,89.0,202.98,202.87,2.56]
[1755962759518,89.0,202.98,202.91,4.9297]
[1755962760320,89.0,202.98,202.92,4.9295]
[1755962760619,428.34628791,203.05,202.9,2.56]
[1755962760912,122.0,203.04,202.92,2.56]
[1755962761117,4.9274,203.02,202.95,4.9287]
[1755962761317,339.34628791,203.05,202.95,2.56]
[1755962761522,461.34628791,203.05,202.88,4.0688904]
[1755962761715,461.34628791,203.05,202.89,11.0883447]
[1755962761915,461.34628791,203.05,202.91,2.56]
[1755962762220,122.0,203.04,202.92,8.5283447]
[1755962762516,4.9278,203.0,202.93,8.5283447]
[1755962762723,4.9278,203.0,202.91,2.56]
[1755962762920,4.9278,203.0,202.92,8.53307071]
[1755962763215,4.9273,203.02,202.93,6.99309108]
[1755962763416,122.0,203.04,202.93,2.56]
[1755962764018,24.634,203.04,202.93,2.56]
[1755962764318,122.0,203.03,202.93,2.56]
[1755962765518,4.9281,202.99,202.93,2.56]
[1755962765818,122.0,203.03,202.93,2.56]
[1755962766123,121.98,203.04,202.94,8.55012029]
[1755962766323,121.98,203.04,202.95,8.55012029]
[1755962766523,331.44,203.05,202.93,2.56]
[1755962766720,4.927,203.03,202.96,2.78]
[1755962766924,4.927,203.03,202.97,4.44325355]
[1755962767224,4.927,203.03,202.96,7.7085]
[1755962767419,89.0,203.04,202.97,8.55799718]
[1755962767624,89.0,203.04,202.98,4.44589754]
[1755962767825,89.0,203.04,202.96,2.78]
[1755962768024,89.0,203.04,202.98,2.78]
[1755962768223,89.0,203.04,203.0,2.78]
[1755962768523,89.0,203.04,202.98,2.78]
[1755962768723,89.0,203.04,202.99,8.56150885]
[1755962768916,89.0,203.04,202.93,159.66669278]
[1755962769113,89.0,203.03,202.95,2.78]
[1755962769317,89.0,203.03,202.96,8.56516201]
[1755962769614,89.0,203.03,202.97,8.56516201]
[1755962769818,89.0,203.03,202.98,4.44998357]
[1755962770020,89.0,203.03,202.95,2.78]
[1755962770216,89.0,203.03,202.97,2.78]
[1755962770421,89.0,203.03,202.99,2.78]
[1755962770721,7.90628791,203.13,203.02,4.9271]
[1755962771024,7.90628791,203.13,203.03,8.57672681]
[1755962771025,122.0,203.13,203.03,8.57672681]
[1755962771214,4.925,203.11,203.04,8.57782885]
[1755962771418,4.925,203.11,203.05,4.45543333]
[1755962771615,154.60798791,203.14,203.06,4.45478973]
[1755962771819,154.60798791,203.14,203.03,2.78]
[1755962772017,154.60798791,203.14,203.04,8.57610169]
[1755962772216,154.60798791,203.14,203.05,8.57610169]
[1755962772420,154.60798791,203.14,203.06,4.45584931]
[1755962772421,129.98628791,203.14,203.06,4.45584931]
[1755962772625,201.48907421,203.15,203.07,8.57085961]
[1755962772626,112.48907421,203.15,203.07,8.57085961]
[1755962772824,112.48907421,203.15,203.08,4.45280809]
[1755962773031,4.9254,203.1,203.08,4.45280809]
[1755962773323,122.18,203.11,203.0,2.78]
[1755962773517,7.90628791,203.1,203.01,4.45170006]
[1755962773724,96.90628791,203.1,202.95,2.78]
[1755962773924,96.90628791,203.1,202.96,8.57107134]
[1755962774123,96.90628791,203.1,202.95,2.78]
[1755962774124,24.6281,203.09,202.97,8.57107134]
[1755962774420,7.90628791,203.06,202.98,4.4529729]
[1755962774625,154.71788791,203.06,202.95,2.78]
[1755962774819,154.71788791,203.06,202.96,4.45449225]
[1755962775024,4.9276,203.01,202.93,164.59589278]
[1755962775226,4.9276,203.01,202.94,8.57583533]
[1755962775425,7.90628791,203.06,202.95,4.45549284]
[1755962775728,122.22,203.05,202.96,4.45549284]
[1755962775928,122.22,203.05,202.95,2.78]
[1755962776327,146.8527,203.05,202.93,159.66669278]
[1755962776623,24.6338,203.04,202.86,6.8488904]
[1755962776827,12.59313589,203.02,202.87,8.587986]
[1755962777127,12.59313589,203.02,202.86,2.78]
[1755962777128,122.28,203.01,202.89,2.78]
[1755962777328,122.28,203.01,202.9,8.587986]
[1755962777524,4.9279,202.99,202.91,13.517686]
[1755962777723,4.9279,202.99,202.92,8.587986]
[1755962777925,4.9279,202.99,202.93,4.46566134]
[1755962778126,122.42,203.03,202.94,4.46566134]
[1755962778127,4.9275,203.01,202.94,4.46566134]
[1755962778326,4.9275,203.01,202.92,4.9294]
[1755962778626,4.9275,203.01,202.93,4.46348835]
[1755962778827,4.9275,203.01,202.92,4.9294]
[1755962779028,4.9275,203.01,202.93,4.46347648]
[1755962779225,4.9275,203.01,202.92,4.9294]
[1755962779425,4.9275,203.01,202.93,4.46264535]
[1755962779626,4.9275,203.01,202.92,4.9294]
[1755962779830,127.3069,203.04,202.94,2.78]
[1755962780028,127.3069,203.04,202.95,4.46279274]
[1755962780229,122.38,203.04,202.94,2.78]
[1755962780530,122.38,203.04,202.96,4.9286]
[1755962780931,122.38,203.04,202.97,4.9282]
[1755962781533,4.9265,203.05,202.97,4.9282]
[1755962782427,89.0,203.04,202.97,4.9282]
[1755962783226,93.9269,203.04,202.95,4.9289]
[1755962783426,89.0,203.04,202.95,4.9289]
[1755962784524,4.9271,203.03,202.95,4.9289]
[1755962785729,89.0,203.04,202.91,24.6494]
[1755962785935,89.0,203.04,202.97,2.78]
[1755962786531,89.0,203.04,202.93,2.78]
[1755962786731,89.0,203.04,202.94,9.38929478]
[1755962787038,93.9267,203.04,202.93,2.78]
[1755962787234,89.0,203.04,202.94,4.45981375]
[1755962787438,89.0,203.04,202.93,7.7092]
[1755962787642,4.9274,203.02,202.94,4.46096618]
[1755962787938,89.0,203.04,202.95,4.46077641]
[1755962788141,89.0,203.03,202.93,2.78]
[1755962788343,89.0,203.03,202.94,4.46083561]
[1755962788542,89.0,203.03,202.96,4.9285]
[1755962789134,89.0,203.03,202.93,2.78]
[1755962789335,89.0,203.02,202.89,2.78]
[1755962789545,24.6377,203.01,202.9,4.46470068]
[1755962789742,24.6377,203.01,202.84,122.3]
[1755962789743,211.6,203.0,202.84,122.3]
[1755962789939,89.0,202.99,202.85,4.46751493]
[1755962790142,4.9295,202.93,202.86,4.46751493]
[1755962790340,4.9295,202.93,202.87,4.46751493]
[1755962790541,4.9295,202.93,202.86,4.9309]
[1755962790742,89.0,202.98,202.87,7.24952192]
[1755962790942,89.0,202.98,202.88,4.46952192]
[1755962791147,89.0,202.98,202.89,4.46952192]
[1755962791442,89.0,202.98,202.87,2.78]
[1755962791443,89.0,202.98,202.9,4.46952192]
[1755962791636,4.9285,202.97,202.9,4.9299]
[1755962793646,4.9285,202.97,202.91,4.9297]
[1755962794636,89.0,202.98,202.92,4.9295]
[1755962795446,122.84,203.02,202.93,9.40167846]
[1755962795647,122.84,203.02,202.93,4.9292]
[1755962795940,4.9278,203.0,202.93,4.9292]
[1755962797544,89.0,202.99,202.83,6.6388904]
[1755962797745,89.0,202.98,202.85,2.57]
[1755962797945,132.5942,203.03,202.85,2.57]
[1755962797946,89.0,202.97,202.86,8.61527342]
[1755962798141,211.84,202.96,202.87,4.47731693]
[1755962798343,211.84,202.96,202.88,4.47731693]
[1755962798542,211.84,202.96,202.89,4.47731693]
[1755962798846,211.84,202.96,202.9,4.47731693]
[1755962799040,211.84,202.96,202.83,2.57]
[1755962799238,211.84,202.96,202.84,8.61760751]
[1755962799439,211.84,202.96,202.85,8.61760751]
[1755962799639,211.84,202.96,202.86,8.61760751]
[1755962799839,211.84,202.96,202.87,8.61760751]
[1755962800043,211.84,202.96,202.88,4.47788939]
[1755962800241,211.84,202.96,202.89,4.47788939]
[1755962800439,211.84,202.96,202.9,4.47788939]
[1755962800652,4.9295,202.93,202.86,4.931]
[1755962800851,4.9295,202.93,202.87,8.61830951]
[1755962801051,4.9295,202.93,202.88,4.47887009]
[1755962801252,4.9289,202.95,202.89,4.47887009]
[1755962801448,4.9289,202.95,202.9,4.47887009]
[1755962801649,4.9289,202.95,202.86,2.57]
[1755962801947,4.9289,202.95,202.87,4.14027773]
[1755962802141,4.9289,202.95,202.88,8.61986233]
[1755962802347,4.9289,202.95,202.89,4.4795846]
[1755962802551,4.9293,202.94,202.9,4.4795846]
[1755962802849,4.9293,202.94,202.91,4.4795846]
[1755962803149,4.9293,202.94,202.88,4.9304]
[1755962803349,4.9293,202.94,202.89,4.48000322]
[1755962803659,211.68,202.96,202.81,6.6388904]
[1755962803851,89.0,202.95,202.82,8.62771121]
[1755962804046,89.0,202.95,202.83,8.62771121]
[1755962804249,93.9293,202.94,202.85,2.57]
[1755962804449,89.0,202.94,202.86,8.62771121]
[1755962804649,89.0,202.94,202.85,2.57]
[1755962804650,89.0,202.94,202.87,4.4838488]
[1755962804849,89.0,202.94,202.88,4.4838488]
[1755962805050,4.9297,202.92,202.89,4.4838488]
[1755962805251,4.9297,202.92,202.85,7.5012]
[1755962805453,89.0,202.94,202.86,8.62656955]
[1755962805653,89.0,202.94,202.87,4.48343368]
[1755962805954,89.0,202.94,202.88,4.48343368]
[1755962806255,89.0,202.94,202.89,4.48343368]
[1755962806547,4.9297,202.92,202.83,2.57]
[1755962806753,4.9297,202.92,202.84,8.61375159]
[1755962806955,4.9297,202.92,202.85,8.61375159]
[1755962807157,4.9297,202.92,202.86,4.46991377]
[1755962807455,4.9297,202.92,202.87,4.46991377]
[1755962807652,4.9297,202.92,202.88,4.46991377]
[1755962807855,93.9292,202.94,202.89,4.46991377]
[1755962808056,89.0,202.94,202.83,2.57]
[1755962808254,89.0,202.94,202.84,8.61387853]
[1755962808449,89.0,202.94,202.87,4.9307]
[1755962808652,89.0,202.94,202.85,8.61387853]
[1755962808653,89.0,202.94,202.88,4.47004812]
[1755962808857,89.0,202.94,202.89,4.47004812]
[1755962809155,89.0,202.94,202.9,4.47004812]
[1755962809458,93.9292,202.94,202.89,2.57]
[1755962809854,89.0,202.94,202.86,4.931]
[1755962810159,89.0,202.94,202.87,4.46921934]
[1755962810357,89.0,202.94,202.8,2.57]
[1755962810558,89.0,202.93,202.81,8.60892992]
[1755962810759,89.0,202.92,202.82,4.46971194]
[1755962810961,89.0,202.91,202.83,4.46971194]
[1755962811164,89.0,202.9,202.84,4.47057559]
[1755962811363,89.0,202.9,202.8,2.57]
[1755962811658,89.0,202.9,202.81,8.60640185]
[1755962811847,89.0,202.9,202.8,2.57]
[1755962811848,89.0,202.9,202.82,8.60640185]
[1755962812163,4.9304,202.89,202.83,9.40009007]
[1755962812349,4.9304,202.89,202.84,4.46839007]
[1755962812553,4.9304,202.89,202.83,4.9317]
[1755962812748,89.0,202.9,202.84,4.46752536]
[1755962812954,89.0,202.9,202.86,2.57]
[1755962813959,93.9302,202.9,202.86,2.57]
[1755962814158,93.9302,202.9,202.82,2.57]
[1755962814359,93.9302,202.9,202.83,4.46695382]
[1755962814360,89.0,202.9,202.83,4.46695382]
[1755962814556,89.0,202.89,202.77,2.57]
[1755962814754,89.0,202.88,202.78,8.60530268]
[1755962815056,89.0,202.88,202.79,4.46792751]
[1755962815264,211.98,202.88,202.8,4.46792751]
[1755962815454,211.98,202.88,202.81,4.46868638]
[1755962815655,211.98,202.88,202.77,2.57]
[1755962815862,211.98,202.88,202.78,8.60380476]
[1755962816162,211.98,202.88,202.79,4.46747865]
[1755962816359,211.98,202.88,202.8,4.46747865]
[1755962816557,4.9314,202.85,202.81,4.46747865]
[1755962816755,4.9314,202.85,202.78,4.9329]
[1755962817058,4.9314,202.85,202.79,4.46783185]
[1755962817259,4.9314,202.85,202.8,4.46783185]
[1755962817562,4.9314,202.85,202.81,4.46783185]
[1755962817765,4.9314,202.85,202.79,4.9326]
[1755962817955,4.9314,202.85,202.8,4.46900421]
[1755962818155,4.9314,202.85,202.81,4.46900421]
[1755962818355,4.9314,202.85,202.79,4.9326]
[1755962818556,4.931,202.87,202.8,11.97248671]
[1755962818760,4.931,202.87,202.81,4.47008671]
[1755962818961,4.931,202.87,202.82,4.47008671]
[1755962819162,4.931,202.87,202.8,7.5024]
[1755962819358,4.931,202.87,202.81,4.46986994]
[1755962819662,4.931,202.87,202.82,4.46986994]
[1755962819859,4.931,202.87,202.8,7.5024]
[1755962820066,4.931,202.87,202.81,9.40161051]
[1755962820370,89.0,202.86,202.83,2.57]
[1755962820560,89.0,202.86,202.77,24.6664]
[1755962820561,89.0,202.86,202.84,9.40081051]
[1755962820860,89.0,202.86,202.85,7.03941051]
[1755962821061,89.0,202.92,202.87,4.9308]
[1755962821261,89.0,202.91,202.87,4.9308]
[1755962821652,89.0,202.91,202.78,4.0688904]
[1755962821857,89.0,202.91,202.79,11.17060208]
[1755962822062,89.0,202.91,202.81,4.9322]
[1755962822256,89.0,202.91,202.8,8.60060208]
[1755962822257,89.0,202.91,202.82,4.46593989]
[1755962822463,89.0,202.9,202.83,4.46593989]
[1755962822762,89.0,202.9,202.79,2.57]
[1755962822763,89.0,202.89,202.79,2.57]
[1755962822964,89.0,202.89,202.8,4.46792366]
[1755962823165,89.0,202.89,202.81,4.46792366]
[1755962823358,89.0,202.89,202.79,2.57]
[1755962823561,89.0,202.89,202.8,8.6036278]
[1755962823757,4.9307,202.88,202.81,9.39992755]
[1755962823959,4.9307,202.88,202.82,4.46772755]
[1755962824159,89.0,202.89,202.83,4.46772755]
[1755962824360,89.0,202.89,202.79,2.57]
[1755962824564,89.0,202.89,202.8,8.60350493]
[1755962824756,89.0,202.88,202.81,4.46695009]
[1755962824957,89.0,202.88,202.82,4.46695009]
[1755962825162,89.0,202.88,202.83,4.46695009]
[1755962825363,89.0,202.88,202.79,2.57]
[1755962825364,89.0,202.88,202.81,4.9321]
[1755962825563,89.0,202.88,202.82,4.4671471]
[1755962825760,89.0,202.88,202.83,4.4671471]
[1755962825962,89.0,202.88,202.84,7.0971471]
[1755962826166,89.0,202.88,202.84,2.63]
[1755962826764,89.0,202.88,202.78,24.6651]
[1755962826970,123.16,202.94,202.8,2.63]
[1755962827163,89.0,202.93,202.82,2.63]
[1755962827362,89.0,202.93,202.83,8.6043244]
[1755962827568,89.0,202.93,202.84,4.46773137]
[1755962827768,89.0,202.93,202.85,4.46773137]
[1755962827968,89.0,202.92,202.86,4.46773137]
[1755962828162,89.0,202.92,202.82,2.63]
[1755962828366,89.0,202.91,202.83,4.46765578]
[1755962828569,89.0,202.91,202.78,2.63]
[1755962828866,89.0,202.9,202.79,8.61016427]
[1755962829065,89.0,202.9,202.8,8.61016427]
[1755962829265,89.0,202.9,202.81,8.61104959]
[1755962829465,89.0,202.9,202.82,4.47021385]
[1755962829771,89.0,202.9,202.83,4.47021385]
[1755962829969,89.0,202.89,202.84,4.47021385]
[1755962830166,4.9307,202.88,202.82,4.932]
[1755962830369,4.9307,202.88,202.83,4.47192938]
[1755962830571,89.0,202.89,202.84,4.47331695]
[1755962830762,89.0,202.89,202.85,4.47331695]
[1755962830961,89.0,202.89,202.86,4.47171182]
[1755962831263,89.0,202.89,202.81,2.63]
[1755962831464,89.0,202.89,202.82,8.61663521]
[1755962831659,89.0,202.89,202.83,8.61663521]
[1755962831864,89.0,202.89,202.84,4.47375249]
[1755962832064,89.0,202.89,202.85,4.47375249]
[1755962832369,89.0,202.89,202.86,4.47375249]
[1755962832667,89.0,202.89,202.81,2.63]
[1755962832861,89.0,202.89,202.82,8.62018258]
[1755962833069,89.0,202.89,202.83,8.62018258]
[1755962833265,93.9305,202.89,202.84,8.62229452]
[1755962833468,93.9305,202.89,202.85,4.47571269]
[1755962833669,93.9305,202.89,202.86,4.47571269]
[1755962833863,93.9305,202.89,202.83,4.9317]
[1755962834071,89.0,202.89,202.84,13.55548889]
[1755962834371,89.0,202.89,202.85,4.47749663]
[1755962834569,89.0,202.89,202.86,4.47749663]
[1755962834771,89.0,202.89,202.87,4.47749663]
[1755962834971,89.0,202.89,202.81,2.63]
[1755962835172,89.0,202.89,202.82,8.62585624]
[1755962835469,89.0,202.89,202.83,8.62585624]
[1755962835666,89.0,202.89,202.87,4.9307]
[1755962835866,24.6307,203.07,202.89,2.63]
[1755962835867,89.0,202.98,202.89,2.63]
[1755962836072,89.0,202.97,202.9,8.62436083]
[1755962836266,89.0,203.02,202.95,2.63]
[1755962836465,89.0,203.02,202.96,4.47813154]
[1755962836671,89.0,203.02,202.95,2.63]
[1755962836867,89.0,203.02,202.96,4.45659589]
[1755962837172,89.0,203.02,202.97,4.45659589]
[1755962837369,89.0,203.02,202.98,4.45659589]
[1755962837673,89.0,203.02,202.99,4.45659589]
[1755962837873,89.0,203.02,203.0,4.45659589]
[1755962838077,123.16,203.06,202.95,2.63]
[1755962838373,123.14,203.06,202.96,4.80455923]
[1755962838673,123.14,203.06,202.97,4.80455923]
[1755962838967,123.14,203.06,202.98,4.80455923]
[1755962839168,123.14,203.06,202.99,4.80455923]
[1755962839472,123.14,203.06,203.0,4.80455923]
[1755962839663,4.9271,203.03,202.96,4.9285]
[1755962839866,4.9271,203.03,202.97,4.8020373]
[1755962840070,123.14,203.06,202.98,4.8020373]
[1755962840270,4.9265,203.05,202.99,4.80134825]
[1755962840476,4.9265,203.05,202.97,4.9282]
[1755962840674,4.9265,203.05,202.98,4.80020652]
[1755962840974,4.9265,203.05,202.99,4.80049951]
[1755962841174,4.9265,203.05,202.97,4.9282]
[1755962841370,4.9265,203.05,202.98,4.79933685]
[1755962841571,4.9265,203.05,202.99,4.79933685]
[1755962841875,4.9265,203.05,202.97,4.9282]
[1755962842075,4.9265,203.05,202.98,4.79897714]
[1755962842377,4.9265,203.05,202.99,4.79897714]
[1755962842571,4.9265,203.05,202.97,4.9282]
[1755962842772,4.9265,203.05,202.98,4.79894203]
[1755962843074,4.9265,203.05,202.99,4.79894203]
[1755962843276,4.9265,203.05,202.97,4.9282]
[1755962843582,4.9269,203.04,202.98,4.7969565]
[1755962843773,7.94963279,203.05,202.91,2.63]
[1755962843978,89.0,203.04,202.92,4.79763064]
[1755962844179,4.928,202.99,202.93,4.79763064]
[1755962844473,89.0,202.98,202.94,4.79763064]
[1755962844670,89.0,202.98,202.87,2.63]
[1755962844981,89.0,202.98,202.88,8.93338533]
[1755962845180,89.0,202.98,202.89,4.79994491]
[1755962845376,4.9286,202.97,202.9,4.79994491]
[1755962845677,4.9286,202.97,202.91,4.79994491]
[1755962845977,4.9286,202.97,202.92,4.79994491]
[1755962846175,4.9286,202.97,202.93,4.79994491]
[1755962846369,89.0,202.98,202.94,4.80057438]
[1755962846570,89.0,202.98,202.95,4.80057438]
[1755962846770,89.0,202.98,202.91,2.63]
[1755962846976,93.9283,202.98,202.92,4.8004656]
[1755962847178,89.0,203.05,202.95,2.63]
[1755962847471,4.9271,203.03,202.96,4.8004656]
[1755962847672,4.9271,203.03,202.97,4.8004656]
[1755962847877,4.9271,203.03,202.98,4.8004656]
[1755962848072,4.9271,203.03,202.95,7.5588]
[1755962848273,4.9271,203.03,202.96,4.7976752]
[1755962848480,4.9271,203.03,202.97,4.7976752]
[1755962848687,89.0,203.05,202.95,7.5588]
[1755962848688,89.0,203.05,202.95,2.63]
[1755962848884,7.94963279,203.03,202.96,4.79790188]
[1755962849088,7.94963279,203.03,202.9,2.63]
[1755962849285,89.0,203.02,202.91,4.79963551]
[1755962849486,7.94963279,202.99,202.92,4.79963551]
[1755962849686,7.94963279,202.99,202.86,2.63]
[1755962849687,122.98,202.98,202.86,2.63]
[1755962849886,4.9288,202.96,202.87,4.80240343]
[1755962850092,89.0,202.97,202.89,2.63]
[1755962850591,89.0,202.97,202.91,2.63]
[1755962850791,123.2,203.02,202.92,4.79981196]
[1755962850989,4.927,203.03,202.96,4.9285]
[1755962851493,123.2,203.04,202.96,4.9285]
[1755962851689,123.2,203.04,202.97,4.79660697]
[1755962851884,128.1269,203.04,202.98,4.79660697]
[1755962852084,128.1269,203.04,202.96,4.9285]
[1755962852290,128.1269,203.04,202.97,9.72511268]
[1755962852495,128.1269,203.04,202.98,4.79681268]
[1755962852689,128.1269,203.04,202.97,4.9283]
[1755962852890,4.9269,203.04,202.98,4.79552796]
[1755962853090,4.9269,203.04,202.97,4.9283]
[1755962853285,4.9269,203.04,202.98,4.79714727]
[1755962853496,4.9269,203.04,202.97,4.9283]
[1755962853696,4.9269,203.04,202.98,4.79604899]
[1755962853886,4.9269,203.04,202.97,4.9283]
[1755962854090,4.9269,203.04,202.98,4.79604899]
[1755962854291,89.0,203.06,202.91,7.94963279]
[1755962854492,123.16,203.08,202.93,2.74]
[1755962854688,7.94963279,203.05,202.94,4.7962634]
[1755962854898,32.58233279,203.05,202.95,4.7962634]
[1755962855090,123.16,203.08,202.96,4.7962634]
[1755962855292,7.94963279,203.05,202.97,4.7962634]
[1755962855487,7.94963279,203.05,202.98,4.7962634]
[1755962855692,4.9267,203.04,202.96,4.9285]
[1755962855895,4.9267,203.04,202.97,4.79698163]
[1755962856091,89.0,203.03,202.98,4.79698163]
[1755962856296,89.0,203.03,203.0,2.74]
[1755962858088,89.0,203.03,202.99,4.9277]
[1755962858398,89.0,203.03,202.94,2.74]
[1755962858698,89.0,203.03,202.97,4.9284]
[1755962858888,89.0,203.03,202.98,4.79227994]
[1755962859092,89.0,203.03,202.99,4.79227994]
[1755962859287,89.0,203.03,202.97,4.9284]
[1755962859496,89.0,203.03,202.98,4.79209385]
[1755962859688,89.0,203.03,202.99,7.53209385]
[1755962859893,89.0,203.03,203.0,4.79209385]
[1755962860092,89.0,203.03,202.99,2.74]
[1755962860298,89.0,203.03,203.0,7.53088266]
[1755962860488,89.0,203.03,203.01,7.53088266]
[1755962860693,89.0,203.03,203.01,2.74]
[1755962861097,89.0,203.07,203.02,2.74]
[1755962861900,89.0,203.07,203.03,2.74]
[1755962863500,93.9261,203.07,202.99,2.74]
[1755962863798,93.9261,203.07,203.0,4.78800131]
[1755962863998,93.9261,203.07,203.01,4.78800131]
[1755962864200,93.9261,203.07,203.02,4.78800131]
[1755962864405,93.9261,203.07,202.99,2.74]
[1755962864595,4.9263,203.06,203.0,4.78830573]
[1755962864797,4.9263,203.06,203.01,7.52830573]
[1755962864996,4.9263,203.06,203.01,2.74]
[1755962865603,4.9263,203.06,203.02,4.78694931]
[1755962865803,4.9263,203.06,203.01,2.74]
[1755962865995,4.9263,203.06,203.02,7.55399189]
[1755962866191,4.9263,203.06,203.02,2.74]
[1755962867302,4.9266,203.05,203.02,2.74]
[1755962868606,4.9268,203.04,203.02,2.74]
[1755962871301,4.9268,203.04,203.03,4.81576011]
[1755962872709,4.9263,203.06,203.03,7.55576011]
[1755962872908,4.9263,203.06,203.04,4.81576011]
[1755962873206,4.9263,203.06,203.05,4.81676027]
[1755962875206,4.9266,203.05,203.03,2.74]
[1755962875409,4.9266,203.05,203.04,4.82021316]
[1755962877603,89.0,203.07,203.04,4.82021316]
[1755962877808,89.0,203.07,203.05,4.82021316]